fUSD/lending_fUSD_20241023
["ID","MTS","AMOUNT","RATE_DAILY","PERIOD"]
[340701711,1729695075120,-841.4,0.0005088,120]
[340701712,1729695075129,-500.0,0.0005088,120]
[340701713,1729695075138,-678.77,0.0005088,120]
[340701714,1729695075147,-469.32896048,0.0005088,120]
[340701715,1729695075156,-500.0,0.0005088,120]
[340701716,1729695075165,-500.0,0.0005088,120]
[340701717,1729695075175,-564.76,0.0005088,120]
[340701718,1729695075185,-550.03,0.0005088,120]
[340701719,1729695075194,-500.0,0.0005088,120]
[340701720,1729695075203,-531.72,0.0005088,120]
[340701721,1729695075213,-500.0,0.0005088,120]
[340701722,1729695075222,-1168.65,0.0005088,120]
[340701723,1729695075233,-500.0,0.0005088,120]
[340701724,1729695075243,-500.0,0.0005088,120]
[340701725,1729695075254,-500.0,0.0005088,120]
[340701726,1729695075265,-500.0,0.0005088,120]
[340701727,1729695075275,-500.0,0.0005088,120]
[340701728,1729695075285,-500.0,0.0005088,120]
[340701729,1729695075294,-500.0,0.0005088,120]
[340701730,1729695075304,-500.0,0.0005088,120]
[340701731,1729695075313,-582.29,0.0005088,120]
[340701732,1729695075323,-500.0,0.0005088,120]
[340701733,1729695075332,-500.0,0.0005088,120]
[340701734,1729695075342,-500.0,0.0005088,120]
[340701735,1729695075351,-219.45755036,0.0005088,120]
[340701736,1729695075360,-500.0,0.0005088,120]
[340701737,1729695075369,-400.9164755,0.0005088,120]
[340701738,1729695075379,-457.85839368,0.0005088,120]
[340701739,1729695075390,-222.07230945,0.0005088,120]
[340701740,1729695075399,-500.0,0.0005088,2]
[340701741,1729695075408,-500.0,0.0005088,120]
[340701742,1729695075418,-500.0,0.0005088,120]
[340701743,1729695075427,-500.0,0.0005088,120]
[340701744,1729695075436,-500.0,0.0005088,120]
[340701745,1729695075446,-500.0,0.0005088,120]
[340701746,1729695075455,-500.0,0.0005088,120]
[340701747,1729695075465,-500.0,0.0005088,120]
[340701748,1729695075474,-500.0,0.0005088,120]
[340701749,1729695075484,-500.0,0.0005088,120]
[340701750,1729695075493,-735.4,0.0005088,120]
[340701751,1729695075503,-589.28210964,0.0005088,120]
[340701752,1729695075512,-500.0,0.0005088,120]
[340701753,1729695075521,-500.0,0.0005088,120]
[340701754,1729695075531,-868.01,0.0005088,7]
[340701755,1729695075540,-1768.35,0.0005088,120]
[340701756,1729695075549,-500.0,0.0005088,120]
[340701757,1729695075560,-500.0,0.0005088,120]
[340701758,1729695075569,-500.0,0.0005088,120]
[340701759,1729695075579,-812.19,0.0005088,120]
[340701760,1729695075589,-500.0,0.0005088,120]
[340701761,1729695075598,-500.0,0.0005088,120]
[340701762,1729695075607,-632.84073608,0.0005088,120]
[340701763,1729695075618,-500.0,0.0005088,120]
[340701764,1729695075629,-521.61,0.0005088,120]
[340701765,1729695075640,-500.0,0.0005088,120]
[340701766,1729695075651,-641.46,0.0005088,120]
[340701767,1729695075661,-500.0,0.0005088,120]
[340701768,1729695075671,-500.0,0.0005088,120]
[340701769,1729695075680,-500.0,0.0005088,120]
[340701770,1729695075690,-683.15,0.0005088,120]
[340701771,1729695075700,-500.0,0.0005088,120]
[340701772,1729695075709,-500.0,0.0005088,120]
[340701773,1729695075718,-500.0,0.0005088,120]
[340701774,1729695075728,-500.0,0.0005088,120]
[340701775,1729695075737,-500.0,0.0005088,120]
[340701776,1729695075746,-578.2735803,0.0005088,120]
[340701777,1729695075755,-225.68503905,0.0005088,120]
[340701778,1729695075764,-500.0,0.0005088,120]
[340701779,1729695075774,-534.35,0.0005088,120]
[340701780,1729695075783,-500.0,0.0005088,120]
[340701781,1729695075792,-549.24,0.0005088,120]
[340701782,1729695075802,-947.82,0.0005088,120]
[340701783,1729695075815,-717.45,0.0005088,120]
[340701784,1729695075824,-500.0,0.0005088,120]
[340701785,1729695075841,-500.0,0.0005088,120]
[340701786,1729695075850,-500.0,0.0005088,120]
[340701787,1729695075859,-500.0,0.0005088,120]
[340701788,1729695075869,-500.0,0.0005088,120]
[340701789,1729695075879,-500.0,0.0005088,120]
[340701790,1729695075888,-500.0,0.0005088,120]
[340701791,1729695075899,-500.0,0.0005088,120]
[340701792,1729695075909,-413.46751402,0.0005088,120]
[340701793,1729695075918,-500.0,0.0005088,120]
[340701794,1729695075927,-500.0,0.0005088,120]
[340701795,1729695075936,-500.0,0.0005088,120]
[340701796,1729695075945,-500.0,0.0005088,120]
[340701797,1729695075954,-500.0,0.0005088,120]
[340701798,1729695075964,-290.87894799,0.0005088,120]
[340701799,1729695075973,-500.0,0.0005088,120]
[340701800,1729695075984,-500.0,0.0005088,120]
[340701801,1729695075994,-500.0,0.0005088,120]
[340701802,1729695076003,-500.0,0.0005088,120]
[340701803,1729695076014,-500.0,0.0005088,120]
[340701804,1729695076024,-909.83,0.0005088,120]
[340701805,1729695076033,-500.0,0.0005088,120]
[340701806,1729695076044,-500.0,0.0005088,120]
[340701807,1729695076054,-500.0,0.0005088,120]
[340701808,1729695076065,-500.0,0.0005088,120]
[340701809,1729695076075,-224.44171184,0.0005088,120]
[340701810,1729695076087,-500.0,0.0005088,120]
[340701811,1729695076096,-810.49,0.0005088,120]
[340701812,1729695076105,-500.0,0.0005088,120]
[340701813,1729695076114,-500.0,0.0005088,120]
[340701814,1729695076123,-500.0,0.0005088,120]
[340701815,1729695076133,-638.91,0.0005088,120]
[340701816,1729695076142,-500.0,0.0005088,120]
[340701817,1729695076151,-500.0,0.0005088,120]
[340701818,1729695076160,-500.0,0.0005088,120]
[340701819,1729695076169,-500.0,0.0005088,120]
[340701820,1729695076178,-500.0,0.0005088,120]
[340701821,1729695076188,-500.0,0.0005088,120]
[340701822,1729695076197,-500.0,0.0005088,120]
[340701823,1729695076206,-500.0,0.0005088,120]
[340701824,1729695076218,-500.0,0.0005088,120]
[340701825,1729695076228,-500.0,0.0005088,120]
[340701826,1729695076238,-500.0,0.0005088,120]
[340701827,1729695076250,-500.0,0.0005088,120]
[340701828,1729695076262,-500.0,0.0005088,14]
[340701829,1729695076273,-500.0,0.0005088,120]
[340701830,1729695076284,-500.0,0.0005088,120]
[340701831,1729695076294,-500.0,0.0005088,120]
[340701832,1729695076303,-500.0,0.0005088,120]
[340701833,1729695076313,-500.0,0.0005088,120]
[340701834,1729695076322,-500.0,0.0005088,120]
[340701835,1729695076336,-500.0,0.0005088,120]
[340701836,1729695076345,-500.0,0.0005088,120]
[340701837,1729695076354,-500.0,0.0005088,120]
[340701838,1729695076365,-530.93182458,0.0005088,120]
[340701839,1729695076374,-500.0,0.0005088,120]
[340701840,1729695076384,-500.0,0.0005088,120]
[340701841,1729695076393,-608.10821079,0.0005088,120]
[340701842,1729695076403,-500.0,0.0005088,120]
[340701843,1729695076413,-500.0,0.0005088,120]
[340701844,1729695076422,-500.0,0.0005088,120]
[340701845,1729695076431,-1263.1,0.0005088,120]
[340701846,1729695076441,-500.0,0.0005088,120]
[340701847,1729695076450,-500.0,0.0005088,120]
[340701848,1729695076632,-500.0,0.0005088,120]
[340701849,1729695076642,-564.29,0.0005088,120]
[340701850,1729695076652,-500.0,0.0005088,120]
[340701851,1729695076662,-557.88,0.0005088,120]
[340701852,1729695076673,-500.0,0.0005088,120]
[340701853,1729695076682,-500.0,0.0005088,120]
[340701854,1729695076691,-500.0,0.0005088,120]
[340701855,1729695076701,-500.0,0.0005088,120]
[340701856,1729695076710,-686.88,0.0005088,120]
[340701857,1729695076719,-585.56,0.0005088,120]
[340701858,1729695076728,-500.0,0.0005088,120]
[340701859,1729695076738,-500.0,0.0005088,120]
[340701860,1729695076748,-500.0,0.0005088,120]
[340701861,1729695076757,-676.0,0.0005088,120]
[340701862,1729695076767,-500.0,0.0005088,120]
[340701863,1729695076776,-500.0,0.0005088,120]
[340701864,1729695076786,-500.0,0.0005088,120]
[340701865,1729695076796,-659.49,0.0005088,120]
[340701866,1729695076806,-500.0,0.0005088,120]
[340701867,1729695076817,-500.0,0.0005088,120]
[340701868,1729695076828,-500.0,0.0005088,120]
[340701869,1729695076840,-500.0,0.0005088,120]
[340701870,1729695076850,-1865.84,0.0005088,120]
[340701871,1729695076859,-500.0,0.0005088,120]
[340701872,1729695076869,-500.0,0.0005088,120]
[340701873,1729695076878,-500.0,0.00050881,120]
[340701874,1729695076888,-500.0,0.00050881,120]
[340701875,1729695076898,-500.0,0.00050881,120]
[340701876,1729695076908,-500.0,0.00050881,120]
[340701877,1729695076917,-500.0,0.00050881,7]
[340701878,1729695076927,-500.0,0.00050881,120]
[340701879,1729695076936,-500.0,0.00050881,120]
[340701880,1729695076946,-500.0,0.00050881,5]
[340701881,1729695076954,-500.0,0.00050881,120]
[340701882,1729695076963,-500.0,0.00050881,120]
[340701883,1729695076973,-500.0,0.00050881,2]
[340701884,1729695076983,-500.0,0.00050881,120]
[340701885,1729695076992,-500.0,0.00050881,120]
[340701886,1729695077003,-500.0,0.00050881,120]
[340701887,1729695077012,-531.21284854,0.00050881,120]
[340701888,1729695077022,-500.0,0.00050881,120]
[340701889,1729695077031,-500.0,0.00050881,120]
[340701890,1729695077041,-500.0,0.00050881,120]
[340701891,1729695077050,-537.46,0.00050881,120]
[340701892,1729695077059,-500.0,0.00050881,120]
[340701893,1729695077068,-500.0,0.00050881,120]
[340701894,1729695077078,-500.0,0.00050881,120]
[340701895,1729695077089,-662.0,0.00050881,120]
[340701896,1729695077099,-791.08,0.00050881,120]
[340701897,1729695077108,-500.0,0.00050881,120]
[340701898,1729695077118,-500.0,0.00050881,120]
[340701899,1729695077128,-500.0,0.00050881,120]
[340701900,1729695077137,-763.78,0.00050881,120]
[340701901,1729695077147,-500.0,0.00050881,120]
[340701902,1729695077156,-500.0,0.00050881,120]
[340701903,1729695077166,-571.59,0.00050881,120]
[340701904,1729695077175,-500.0,0.00050881,120]
[340701905,1729695077185,-500.0,0.00050881,120]
[340701906,1729695077194,-500.0,0.00050881,120]
[340701907,1729695077203,-500.0,0.00050881,120]
[340701908,1729695077212,-500.0,0.00050881,120]
[340701909,1729695077222,-500.0,0.00050881,120]
[340701910,1729695077231,-500.0,0.00050881,120]
[340701911,1729695077241,-500.0,0.00050881,120]
[340701912,1729695077250,-500.0,0.00050881,120]
[340701913,1729695077260,-805.88,0.00050881,120]
[340701914,1729695077269,-500.0,0.00050881,120]
[340701915,1729695077278,-500.0,0.00050881,120]
[340701916,1729695077288,-500.0,0.00050881,120]
[340701917,1729695077298,-500.0,0.00050892,120]
[340701918,1729695077307,-500.0,0.00050892,120]
[340701919,1729695077316,-633.36,0.00050892,120]
[340701920,1729695077325,-674.13,0.00050892,120]
[340701921,1729695077338,-500.0,0.00050892,120]
[340701922,1729695077348,-1233.24,0.00050892,7]
[340701923,1729695077357,-500.0,0.00050892,120]
[340701924,1729695077367,-500.0,0.00050892,120]
[340701925,1729695077376,-500.0,0.00050892,120]
[340701926,1729695077385,-500.0,0.00050892,120]
[340701927,1729695077395,-500.0,0.00050892,60]
[340701928,1729695077404,-500.0,0.00050892,120]
[340701929,1729695077414,-500.0,0.00050892,120]
[340701930,1729695077424,-500.0,0.00050892,120]
[340701931,1729695077434,-500.0,0.00050892,120]
[340701932,1729695077443,-500.0,0.00050892,120]
[340701933,1729695077453,-500.0,0.00050892,120]
[340701934,1729695077462,-500.0,0.00050892,120]
[340701935,1729695077472,-500.0,0.00050892,120]
[340701936,1729695077482,-500.0,0.00050892,120]
[340701937,1729695077492,-500.0,0.00050892,120]
[340701938,1729695077502,-500.0,0.00050892,120]
[340701939,1729695077512,-500.0,0.00050892,120]
[340701940,1729695077521,-500.0,0.00050892,120]
[340701941,1729695077531,-500.0,0.00050892,120]
[340701942,1729695077541,-500.0,0.00050892,120]
[340701943,1729695077550,-500.0,0.00050892,120]
[340701944,1729695077560,-500.0,0.00050892,120]
[340701945,1729695077569,-525.6917901,0.00050892,120]
[340701946,1729695077579,-623.29,0.00050892,120]
[340701947,1729695077590,-500.0,0.00050892,120]
[340701948,1729695077600,-500.0,0.00050892,120]
[340701949,1729695077609,-500.0,0.00050892,120]
[340701950,1729695077618,-500.0,0.00050892,120]
[340701951,1729695077628,-208.8752996,0.00050892,2]
[340701952,1729695077638,-500.0,0.00050892,120]
[340701953,1729695077647,-500.0,0.00050892,120]
[340701954,1729695077657,-500.0,0.00050892,120]
[340701955,1729695077666,-500.0,0.00050892,120]
[340701956,1729695077676,-639.26,0.00050892,120]
[340701957,1729695077686,-616.53,0.00050892,120]
[340701958,1729695077695,-500.0,0.00050892,120]
[340701959,1729695077704,-500.0,0.00050892,120]
[340701960,1729695077713,-500.0,0.00050892,120]
[340701961,1729695077722,-500.0,0.00050892,120]
[340701962,1729695077731,-500.0,0.00050892,120]
[340701963,1729695077741,-533.17,0.00050892,120]
[340701964,1729695077751,-500.0,0.00050892,120]
[340701965,1729695077760,-500.0,0.00050892,2]
[340701966,1729695077770,-557.53,0.00050892,120]
[340701967,1729695077779,-500.0,0.00050892,2]
[340701968,1729695077788,-500.0,0.00050892,120]
[340701969,1729695077796,-500.0,0.00050892,120]
[340701970,1729695077807,-500.0,0.00050892,120]
[340701971,1729695077817,-500.0,0.00050892,120]
[340701972,1729695077828,-500.0,0.00050892,120]
[340701973,1729695077839,-500.0,0.00050892,120]
[340701974,1729695077849,-500.0,0.00050892,120]
[340701975,1729695077858,-500.0,0.00050892,120]
[340701976,1729695077867,-500.0,0.00050892,120]
[340701977,1729695077877,-500.0,0.00050892,120]
[340701978,1729695077887,-500.0,0.00050892,120]
[340701979,1729695077896,-500.0,0.00050892,120]
[340701980,1729695077906,-500.0,0.00050892,120]
[340701981,1729695077915,-761.83,0.00050892,120]
[340701982,1729695077924,-500.0,0.00050892,120]
[340701983,1729695077934,-500.0,0.00050892,120]
[340701984,1729695077943,-500.0,0.00050892,120]
[340701985,1729695077953,-500.0,0.00050892,120]
[340701986,1729695077963,-500.0,0.00050892,120]
[340701987,1729695077972,-500.0,0.00050892,120]
[340701988,1729695077982,-500.0,0.00050892,120]
[340701989,1729695077991,-500.0,0.00050892,120]
[340701990,1729695078001,-500.0,0.00050892,120]
[340701991,1729695078010,-500.0,0.00050892,120]
[340701992,1729695078019,-500.0,0.00050892,120]
[340701993,1729695078029,-500.0,0.00050892,120]
[340701994,1729695078038,-1259.92,0.00050892,120]
[340701995,1729695078048,-500.0,0.00050892,120]
[340701996,1729695078058,-500.0,0.00050892,120]
[340701997,1729695078067,-500.0,0.00050892,120]
[340701998,1729695078076,-500.0,0.00050892,120]
[340701999,1729695078088,-500.0,0.00050892,120]
[340702000,1729695078097,-500.0,0.00050892,120]
[340702001,1729695078107,-500.0,0.00050892,120]
[340702002,1729695078117,-500.0,0.00050892,120]
[340702003,1729695078127,-500.0,0.00050892,120]
[340702004,1729695078137,-500.0,0.00050892,120]
[340702005,1729695078146,-500.0,0.00050892,120]
[340702006,1729695078156,-500.0,0.00050892,120]
[340702007,1729695078166,-500.0,0.00050892,120]
[340702008,1729695078175,-500.0,0.00050892,120]
[340702009,1729695078185,-500.0,0.00050892,120]
[340702010,1729695078194,-500.0,0.00050892,120]
[340702011,1729695078204,-500.0,0.00050892,120]
[340702012,1729695078214,-583.75,0.00050892,120]
[340702013,1729695078223,-500.0,0.00050892,120]
[340702014,1729695078233,-500.0,0.00050892,120]
[340702015,1729695078243,-500.0,0.00050892,120]
[340702016,1729695078253,-500.0,0.00050892,120]
[340702017,1729695078263,-500.0,0.00050892,120]
[340702018,1729695078272,-500.0,0.00050892,120]
[340702019,1729695078282,-591.95,0.00050892,120]
[340702020,1729695078293,-500.0,0.00050892,120]
[340702021,1729695078303,-500.0,0.00050892,120]
[340702022,1729695078312,-595.43664779,0.00050892,120]
[340702023,1729695078322,-1926.93,0.00050892,120]
[340702024,1729695078332,-500.0,0.00050892,120]
[340702025,1729695078344,-500.0,0.00050892,120]
[340702026,1729695078360,-500.0,0.00050892,120]
[340702027,1729695078370,-1953.12,0.00050892,120]
[340702028,1729695078380,-500.0,0.00050892,120]
[340702029,1729695078390,-150.0,0.00050892,7]
[340702030,1729695078401,-1316.14,0.00050892,120]
[340702031,1729695078411,-513.64,0.00050892,120]
[340702032,1729695078421,-500.0,0.00050892,120]
[340702033,1729695078431,-1902.26,0.00050892,120]
[340702034,1729695078441,-500.0,0.00050892,120]
[340702035,1729695078450,-500.0,0.00050892,120]
[340702036,1729695078460,-699.33,0.00050892,120]
[340702037,1729695078470,-2403.72,0.00050892,120]
[340702038,1729695078479,-686.38,0.00050892,120]
[340702039,1729695078489,-500.0,0.00050892,120]
[340702040,1729695078499,-500.0,0.00050892,120]
[340702041,1729695078509,-500.0,0.00050892,120]
[340702042,1729695078518,-631.69,0.00050892,120]
[340702043,1729695078529,-500.0,0.00050892,120]
[340702044,1729695078539,-2091.96,0.00050892,120]
[340702045,1729695078549,-549.51,0.00050892,120]
[340702046,1729695078559,-501.15,0.00050892,120]
[340702047,1729695078569,-2666.93,0.00050892,120]
[340702048,1729695078579,-1895.2,0.00050892,120]
[340702049,1729695078593,-500.0,0.00050892,120]
[340702050,1729695078603,-500.0,0.00050892,120]
[340702051,1729695078613,-500.0,0.00050892,120]
[340702052,1729695078622,-500.0,0.00050892,120]
[340702053,1729695078632,-500.0,0.00050892,120]
[340702054,1729695078643,-639.01,0.00050892,120]
[340702055,1729695078652,-2056.13,0.00050892,120]
[340702056,1729695078662,-500.0,0.00050892,120]
[340702057,1729695078671,-739.87,0.00050892,120]
[340702058,1729695078680,-500.0,0.00050893,120]
[340702059,1729695078689,-500.0,0.00050893,120]
[340702060,1729695078699,-651.7,0.00050893,120]
[340702061,1729695078708,-500.0,0.00050893,120]
[340702062,1729695078718,-500.0,0.00050893,120]
[340702063,1729695078727,-500.0,0.00050893,120]
[340702064,1729695078736,-500.0,0.00050893,120]
[340702065,1729695078746,-500.0,0.00050893,120]
[340702066,1729695078756,-505.6,0.00050893,120]
[340702067,1729695078765,-531.83,0.00050893,120]
[340702068,1729695078775,-500.0,0.00050893,120]
[340702069,1729695078785,-861.3,0.00050893,120]
[340702070,1729695078794,-645.91,0.00050893,120]
[340702071,1729695078804,-500.0,0.00050893,120]
[340702072,1729695078814,-1300.94,0.00050893,120]
[340702073,1729695078828,-2414.78,0.00050893,120]
[340702074,1729695078844,-500.0,0.00050893,120]
[340702075,1729695078854,-500.0,0.00050893,120]
[340702076,1729695078864,-500.0,0.00050893,120]
[340702077,1729695078875,-500.0,0.00050893,120]
[340702078,1729695078885,-500.0,0.00050893,120]
[340702079,1729695078894,-500.0,0.00050893,120]
[340702080,1729695078905,-544.40481451,0.00050893,120]
[340702081,1729695078915,-1666.47,0.00050893,120]
[340702082,1729695078926,-500.0,0.00050893,120]
[340702083,1729695078935,-150.0,0.00050937,14]
[340702084,1729695078945,-500.0,0.00050963,120]
[340702085,1729695078955,-1038.31,0.00050963,120]
[340702086,1729695078965,-500.0,0.00050963,120]
[340702087,1729695078974,-1396.2,0.00050963,120]
[340702088,1729695078984,-2499.88,0.00050963,120]
[340702089,1729695078994,-581.14,0.00050963,120]
[340702090,1729695079004,-500.0,0.00050963,120]
[340702091,1729695079014,-2403.29,0.00050963,120]
[340702092,1729695079024,-2393.31,0.00050963,120]
[340702093,1729695079033,-1078.45,0.00050963,120]
[340702094,1729695079043,-1462.44,0.00050963,120]
[340702095,1729695079053,-865.81,0.00050963,120]
[340702096,1729695079063,-596.71,0.00050963,120]
[340702097,1729695079073,-1434.43,0.00050963,120]
[340702098,1729695079084,-539.87,0.00050963,120]
[340702099,1729695079093,-6123.06,0.00050963,120]
[340702100,1729695079103,-500.0,0.00050963,120]
[340702101,1729695079113,-500.0,0.00050963,120]
[340702102,1729695079123,-500.0,0.00050963,120]
[340702103,1729695079132,-500.0,0.00050964,120]
[340702104,1729695079142,-551.7,0.00050964,120]
[340702105,1729695079151,-500.0,0.00050964,120]
[340702106,1729695079160,-387.33625697,0.00050964,120]
[340702107,1729695079170,-500.0,0.00050964,120]
[340702108,1729695079180,-1279.4,0.00050964,120]
[340702109,1729695079190,-541.69,0.00050964,120]
[340702110,1729695079200,-500.0,0.00050964,120]
[340702111,1729695079210,-500.0,0.00050964,120]
[340702112,1729695079219,-500.0,0.00050964,120]
[340702113,1729695079229,-500.0,0.00050964,120]
[340702114,1729695079239,-500.0,0.00050964,120]
[340702115,1729695079249,-500.0,0.00050964,120]
[340702116,1729695079261,-500.0,0.00050964,120]
[340702117,1729695079271,-800.5,0.00050964,120]
[340702118,1729695079281,-829.74,0.00050964,120]
[340702119,1729695079291,-500.0,0.00050964,120]
[340702120,1729695079301,-500.0,0.00050964,120]
[340702121,1729695079311,-831.97,0.00050964,120]
[340702122,1729695079320,-500.0,0.00050964,120]
[340702123,1729695079330,-3068.62,0.00050964,120]
[340702124,1729695079341,-2062.02,0.00050964,120]
[340702125,1729695079351,-636.42,0.00050964,120]
[340702126,1729695079362,-500.0,0.00050964,120]
[340702127,1729695079371,-632.86,0.00050964,120]
[340702128,1729695079381,-500.0,0.00050964,120]
[340702129,1729695079391,-500.0,0.00050964,120]
[340702130,1729695079401,-521.15,0.00050964,120]
[340702131,1729695079410,-500.0,0.00050964,120]
[340702132,1729695079419,-500.0,0.00050964,120]
[340702133,1729695079429,-1010.38,0.00050964,120]
[340702134,1729695079440,-500.0,0.00050964,120]
[340702135,1729695079450,-500.0,0.00050964,120]
[340702136,1729695079460,-829.76,0.00050964,120]
[340702137,1729695079470,-710.82,0.00050964,120]
[340702138,1729695079480,-500.0,0.00050964,120]
[340702139,1729695079489,-500.0,0.00050964,120]
[340702140,1729695079499,-500.0,0.00050964,120]
[340702141,1729695079509,-500.0,0.00050964,120]
[340702142,1729695079518,-500.0,0.00050964,120]
[340702143,1729695079528,-500.0,0.00050964,120]
[340702144,1729695079537,-500.0,0.00050964,120]
[340702145,1729695079547,-500.0,0.00050964,120]
[340702146,1729695079557,-500.0,0.00050964,120]
[340702147,1729695079567,-500.0,0.00050964,120]
[340702148,1729695079576,-2091.95,0.00050964,120]
[340702149,1729695079588,-152.467185,0.00050964,120]
[340702150,1729695079598,-153.042613,0.00050964,120]
[340702151,1729695079608,-285.083403,0.00050964,120]
[340702152,1729695079618,-405.89748,0.00050964,120]
[340702153,1729695079628,-15318.09,0.00050964,120]
[340702154,1729695079637,-500.0,0.00050964,120]
[340702155,1729695079646,-500.0,0.00050964,120]
[340702156,1729695079656,-696.58,0.00050964,120]
[340702157,1729695079666,-500.0,0.00050964,120]
[340702158,1729695079676,-500.0,0.00050964,120]
[340702159,1729695079685,-500.0,0.00050964,120]
[340702160,1729695079695,-956.6,0.00050964,120]
[340702161,1729695079704,-500.0,0.00050964,120]
[340702162,1729695079714,-500.0,0.00050964,120]
[340702163,1729695079723,-500.0,0.00050964,120]
[340702164,1729695079733,-1237.23,0.00050964,120]
[340702165,1729695079744,-500.0,0.00050964,120]
[340702166,1729695079754,-500.0,0.00050964,120]
[340702167,1729695079764,-500.0,0.00050964,120]
[340702168,1729695079775,-500.0,0.00050964,120]
[340702169,1729695079784,-500.0,0.00050964,120]
[340702170,1729695079794,-500.0,0.00050964,120]
[340702171,1729695079804,-500.0,0.00050964,120]
[340702172,1729695079813,-5655.78,0.00050964,21]
[340702173,1729695079823,-500.0,0.00050964,120]
[340702174,1729695079833,-500.0,0.00050964,120]
[340702175,1729695079843,-500.0,0.00050964,120]
[340702176,1729695079853,-500.0,0.00050964,120]
[340702177,1729695079863,-500.0,0.00050964,120]
[340702178,1729695079873,-1801.94,0.00050964,120]
[340702179,1729695079882,-1551.48,0.00050964,120]
[340702180,1729695079891,-500.0,0.00050964,120]
[340702181,1729695079901,-946.91,0.00050964,120]
[340702182,1729695079911,-2527.52,0.00050964,120]
[340702183,1729695079920,-554.73725648,0.00050964,120]
[340702184,1729695079930,-1036.64,0.00050964,120]
[340702185,1729695080109,-500.0,0.00050964,120]
[340702186,1729695080119,-500.0,0.00050964,120]
[340702187,1729695080129,-2104.19,0.00050964,120]
[340702188,1729695080139,-500.0,0.00050964,120]
[340702189,1729695080150,-500.0,0.00050964,120]
[340702190,1729695080160,-500.0,0.00050964,120]
[340702191,1729695080171,-500.0,0.00050964,120]
[340702192,1729695080181,-514.44,0.00050964,120]
[340702193,1729695080191,-742.05,0.00050964,120]
[340702194,1729695080201,-500.0,0.00050965,120]
[340702195,1729695080211,-500.0,0.00050965,120]
[340702196,1729695080222,-500.0,0.00050965,120]
[340702197,1729695080233,-500.0,0.00050965,120]
[340702198,1729695080243,-546.83,0.00050965,120]
[340702199,1729695080255,-527.01,0.00050965,120]
[340702200,1729695080266,-633.57,0.00050965,120]
[340702201,1729695080275,-500.0,0.00050965,120]
[340702202,1729695080287,-500.0,0.00050965,120]
[340702203,1729695080300,-548.76,0.00050965,120]
[340702204,1729695080311,-500.0,0.00050965,120]
[340702205,1729695080322,-500.0,0.00050965,120]
[340702206,1729695080332,-500.0,0.00050965,120]
[340702207,1729695080342,-500.0,0.00050965,120]
[340702208,1729695080351,-500.0,0.00050965,120]
[340702209,1729695080361,-500.0,0.00050965,120]
[340702210,1729695080370,-500.0,0.00050965,120]